bitfinex/quotes_BTCUSD_20240811
["timestamp","ask_amount","ask_price","bid_price","bid_amount"]
[1723344787894,3.34634259,61123.0,61122.0,0.0029152]
[1723344790813,3.34623178,61123.0,61122.0,0.0029152]
[1723344792260,3.34292841,61123.0,61122.0,0.0029152]
[1723344792555,3.34623178,61123.0,61122.0,0.0029152]
[1723344794370,3.3462692,61123.0,61122.0,0.0029152]
[1723344798320,3.34624458,61123.0,61122.0,0.0029152]
[1723344799520,3.51039428,61123.0,61122.0,0.0029152]
[1723344801034,2.95363558,61123.0,61122.0,0.0029152]
[1723344801369,2.87144125,61123.0,61122.0,0.0029152]
[1723344805045,2.87121051,61123.0,61122.0,0.0029152]
[1723344808439,2.69208567,61123.0,61122.0,0.0029152]
[1723344808645,2.87186278,61123.0,61122.0,0.0029152]
[1723344809044,3.19906899,61123.0,61122.0,0.0029152]
[1723344809207,2.87185999,61123.0,61122.0,0.0029152]
[1723344809920,0.16692337,61117.0,61116.0,0.0618]
[1723344810154,2.47833539,61117.0,61116.0,0.0618]
[1723344811048,2.47833539,61117.0,61116.0,0.0628]
[1723344811255,2.48533539,61117.0,61116.0,0.0628]
[1723344811461,2.48603202,61117.0,61116.0,0.0638]
[1723344812070,2.41419892,61117.0,61116.0,0.0638]
[1723344812269,2.6510807,61117.0,61116.0,0.0638]
[1723344813841,2.65438407,61117.0,61116.0,0.0638]
[1723344814042,2.6510807,61117.0,61116.0,0.0638]
[1723344814244,2.75919163,61117.0,61116.0,0.0638]
[1723344816759,2.762495,61117.0,61116.0,0.0638]
[1723344817159,2.75919163,61117.0,61116.0,0.0638]
[1723344817341,2.762495,61117.0,61116.0,0.0638]
[1723344817756,2.75919163,61117.0,61116.0,0.0638]
[1723344817914,2.762495,61117.0,61116.0,0.0638]
[1723344818113,2.75919163,61117.0,61116.0,0.0638]
[1723344819071,2.75919163,61117.0,61116.0,0.0647152]
[1723344819275,2.57925609,61117.0,61116.0,0.0941672]
[1723344819446,2.75968793,61117.0,61116.0,0.0941672]
[1723344819652,2.57925609,61117.0,61116.0,0.0941672]
[1723344819848,2.75964294,61117.0,61116.0,0.0941672]
[1723344821359,2.59458577,61117.0,61116.0,0.0941672]
[1723344821702,2.52778577,61117.0,61116.0,0.0941672]
[1723344821912,2.26734477,61117.0,61116.0,0.1727672]
[1723344822221,2.15910427,61117.0,61116.0,0.1727672]
[1723344822616,2.09230427,61117.0,61116.0,0.1727672]
[1723344822817,2.15901383,61117.0,61116.0,0.1727672]
[1723344823364,2.31901383,61117.0,61116.0,0.1727672]
[1723344823844,2.46577637,61117.0,61116.0,0.1727672]
[1723344824525,2.4657844,61117.0,61116.0,0.1727672]
[1723344825357,2.31901383,61117.0,61116.0,0.1727672]
[1723344825564,2.46579655,61117.0,61116.0,0.1727672]
[1723344825921,1.76115791,61117.0,61116.0,0.1727672]
[1723344826151,1.06795791,61117.0,61116.0,0.17946383]
[1723344826304,1.06782667,61117.0,61116.0,0.17946383]
[1723344826509,0.96782667,61117.0,61116.0,0.17946383]
[1723344826970,1.06568038,61117.0,61116.0,0.17946383]
[1723344827368,0.96782667,61117.0,61116.0,0.17946383]
[1723344827731,1.11674536,61117.0,61116.0,0.17946383]
[1723344827931,1.11674536,61117.0,61116.0,0.1727672]
[1723344828118,1.06782667,61117.0,61116.0,0.1727672]
[1723344828312,1.05682667,61117.0,61116.0,0.1707672]
[1723344828547,1.10573811,61117.0,61116.0,0.1707672]
[1723344828757,1.11473811,61117.0,61116.0,0.1717672]
[1723344828972,1.13919316,61117.0,61116.0,0.1717672]
[1723344829170,1.13919316,61117.0,61116.0,0.1707672]
[1723344829171,1.05882667,61117.0,61116.0,0.1707672]
[1723344829494,1.17914797,61117.0,61116.0,0.1717672]
[1723344829655,1.18614797,61117.0,61116.0,0.1717672]
[1723344829828,1.06682667,61117.0,61116.0,0.1717672]
[1723344830027,1.05982667,61117.0,61116.0,0.1707672]
[1723344830431,1.06611527,61117.0,61116.0,0.1717672]
[1723344831069,1.06311527,61117.0,61116.0,0.1717672]
[1723344831273,0.990902,61117.0,61116.0,0.1717672]
[1723344831467,0.994902,61117.0,61116.0,0.1727672]
[1723344831630,1.0610321,61117.0,61116.0,0.1717672]
[1723344831829,1.0570321,61117.0,61116.0,0.1717672]
[1723344832082,1.0680321,61117.0,61116.0,0.1717672]
[1723344833475,1.19055587,61117.0,61116.0,0.1717672]
[1723344833699,1.06830078,61117.0,61116.0,0.1717672]
[1723344834358,1.06827184,61117.0,61116.0,0.1717672]
[1723344835739,0.995902,61117.0,61116.0,0.1717672]
[1723344836423,1.44539547,61117.0,61116.0,0.1717672]
[1723344836720,1.51793008,61117.0,61116.0,0.1717672]
[1723344837183,1.39562611,61117.0,61116.0,0.1717672]
[1723344838477,1.55944103,61117.0,61116.0,0.0313672]
[1723344838685,2.15944103,61117.0,61116.0,0.0313672]
[1723344839038,2.08695792,61117.0,61116.0,0.0313672]
[1723344840205,2.15954887,61117.0,61116.0,0.0313672]
[1723344842190,2.08695792,61117.0,61116.0,0.0313672]
[1723344850480,2.12695792,61117.0,61116.0,0.0313672]
[1723344852343,2.12695792,61117.0,61116.0,0.03806383]
[1723344852493,2.12695792,61117.0,61116.0,0.1740672]
[1723344852694,2.12695792,61117.0,61116.0,0.18076383]
[1723344853120,2.19957117,61117.0,61116.0,0.18076383]
[1723344853604,2.19957117,61117.0,61116.0,0.1740672]
[1723344854656,2.26957117,61117.0,61116.0,0.1740672]
[1723344855720,1.94233017,61117.0,61116.0,0.18076383]
[1723344855922,1.94233017,61117.0,61116.0,0.1740672]
[1723344856417,2.26952249,61117.0,61116.0,0.1740672]
[1723344856719,1.94123175,61117.0,61116.0,0.1740672]
[1723344856847,1.9412323,61117.0,61116.0,0.1740672]
[1723344857046,2.2684733,61117.0,61116.0,0.1740672]
[1723344857665,2.26849845,61117.0,61116.0,0.1740672]
[1723344858555,1.55849845,61117.0,61116.0,0.1740672]
[1723344858955,1.23125745,61117.0,61116.0,0.1740672]
[1723344859194,1.23125745,61117.0,61116.0,0.18076383]
[1723344859795,1.55849845,61117.0,61116.0,0.18076383]
[1723344859972,1.23125745,61117.0,61116.0,0.18076383]
[1723344860788,1.35357276,61117.0,61116.0,0.18076383]
[1723344862471,1.35358044,61117.0,61116.0,0.18076383]
[1723344863133,1.35358044,61117.0,61116.0,0.1740672]
[1723344863313,1.35358044,61117.0,61116.0,0.18076383]
[1723344863528,1.23125745,61117.0,61116.0,0.18076383]
[1723344864267,1.23125745,61117.0,61116.0,0.0970672]
[1723344864415,1.63469845,61117.0,61116.0,0.0313672]
[1723344865986,2.28469845,61117.0,61116.0,0.0313672]
[1723344866482,2.28553045,61117.0,61116.0,0.0313672]
[1723344866638,2.43231804,61117.0,61116.0,0.0313672]
[1723344867060,1.78231804,61117.0,61116.0,0.0313672]
[1723344867420,1.78225369,61117.0,61116.0,0.0313672]
[1723344867837,1.70972777,61117.0,61116.0,0.0313672]
[1723344868090,1.78224231,61117.0,61116.0,0.0313672]
[1723344869102,2.48224231,61117.0,61116.0,0.0313672]
[1723344869517,2.4822336,61117.0,61116.0,0.0313672]
[1723344871195,2.33550482,61117.0,61116.0,0.0313672]
[1723344874491,2.26294018,61117.0,61116.0,0.0313672]
[1723344874699,2.33551599,61117.0,61116.0,0.0313672]
[1723344877823,2.66275699,61117.0,61116.0,0.0313672]
[1723344877997,2.8937964,61117.0,61116.0,0.0313672]
[1723344878200,2.65608455,61117.0,61116.0,0.0313672]
[1723344878404,2.83744436,61117.0,61116.0,0.0313672]
[1723344878812,2.83575455,61117.0,61116.0,0.0313672]
[1723344879008,2.82475455,61117.0,61116.0,0.0303672]
[1723344879327,2.72924702,61117.0,61116.0,0.0313672]
[1723344879625,2.85215545,61117.0,61116.0,0.0313672]
[1723344879823,2.85915372,61117.0,61116.0,0.0323672]
[1723344880578,2.74955039,61117.0,61116.0,0.0323672]
[1723344881999,2.74945594,61117.0,61116.0,0.0323672]
[1723344883380,2.68265594,61117.0,61116.0,0.0323672]
[1723344883588,2.74945594,61117.0,61116.0,0.0323672]
[1723344885644,2.74887426,61117.0,61116.0,0.0323672]
[1723344886223,2.60007426,61117.0,61116.0,0.0323672]
[1723344886427,2.19248237,61117.0,61116.0,0.0323672]
[1723344886556,2.25928237,61117.0,61116.0,0.1101672]
[1723344886762,2.42440917,61117.0,61116.0,0.1101672]
[1723344886946,2.42440917,61117.0,61116.0,0.0323672]
[1723344887593,2.75165017,61117.0,61116.0,0.0323672]
[1723344887816,2.25928237,61117.0,61116.0,0.0323672]
[1723344889710,2.18649266,61117.0,61116.0,0.0323672]
[1723344889937,2.2591418,61117.0,61116.0,0.0323672]
[1723344891143,2.25924248,61117.0,61116.0,0.0323672]
[1723344897591,2.40602689,61117.0,61116.0,0.0323672]
[1723344900024,2.40609573,61117.0,61116.0,0.0323672]
[1723344900767,2.25931132,61117.0,61116.0,0.0323672]
[1723344901294,2.33831132,61117.0,61116.0,0.0323672]
[1723344903250,2.39991132,61117.0,61116.0,0.0323672]
[1723344904122,2.65433366,61117.0,61116.0,0.0323672]
[1723344904345,2.7270457,61117.0,61116.0,0.0323672]
[1723344905518,2.83578285,61117.0,61116.0,0.0323672]
[1723344905879,2.2592047,61117.0,61116.0,0.0323672]
[1723344906280,2.18649266,61117.0,61116.0,0.0323672]
[1723344906511,2.25926136,61117.0,61116.0,0.0323672]
[1723344906932,2.58650236,61117.0,61116.0,0.0323672]
[1723344907808,2.25926136,61117.0,61116.0,0.0323672]
[1723344908735,2.58650236,61117.0,61116.0,0.0323672]
[1723344909302,2.25926136,61117.0,61116.0,0.0323672]
[1723344909502,2.39986136,61117.0,61116.0,0.0323672]
[1723344909937,2.39976864,61117.0,61116.0,0.0323672]
[1723344910312,2.56489461,61117.0,61116.0,0.0323672]
[1723344910488,2.56489378,61117.0,61116.0,0.0323672]
[1723344910812,2.89213478,61117.0,61116.0,0.0323672]
[1723344911831,2.89214985,61117.0,61116.0,0.0323672]
[1723344912899,2.89225641,61117.0,61116.0,0.0323672]
[1723344913518,2.89226482,61117.0,61116.0,0.0323672]
[1723344914045,2.86281382,61117.0,61116.0,0.0029152]
[1723344917101,2.86276311,61117.0,61116.0,0.0029152]
[1723344917298,2.97149104,61117.0,61116.0,0.0029152]
[1723344917688,2.80625851,61117.0,61116.0,0.0029152]
[1723344917897,2.97150893,61117.0,61116.0,0.0029152]
[1723344918201,2.80625851,61117.0,61116.0,0.0029152]
[1723344920571,2.62488266,61117.0,61116.0,0.0029152]
[1723344920764,2.80618266,61117.0,61116.0,0.0029152]
[1723344924588,2.74458266,61117.0,61116.0,0.0029152]
[1723344924788,2.63588769,61117.0,61116.0,0.0029152]
[1723344924985,2.55688769,61117.0,61116.0,0.0029152]
[1723344926704,2.66560388,61117.0,61116.0,0.0029152]
[1723344927586,2.55688769,61117.0,61116.0,0.0029152]
[1723344927786,2.5569389,61117.0,61116.0,0.0029152]
[1723344928671,2.72222743,61117.0,61116.0,0.0029152]
[1723344929553,2.5569389,61117.0,61116.0,0.0029152]
[1723344929961,2.72222547,61117.0,61116.0,0.0029152]
[1723344930155,2.5569389,61117.0,61116.0,0.0029152]
[1723344930678,2.2296979,61117.0,61116.0,0.1463152]
[1723344930825,2.39499396,61117.0,61116.0,0.1463152]
[1723344931970,2.32234047,61117.0,61116.0,0.1463152]
[1723344932174,2.39510582,61117.0,61116.0,0.1463152]
[1723344932375,2.22980701,61117.0,61116.0,0.0029152]
[1723344932580,2.39510582,61117.0,61116.0,0.0029152]
[1723344935139,2.32234047,61117.0,61116.0,0.0029152]
[1723344935350,2.22984753,61117.0,61116.0,0.0029152]
[1723344939209,2.22993359,61117.0,61116.0,0.0029152]
[1723344940303,1.83589259,61117.0,61116.0,0.15061183]
[1723344940522,0.69180065,61117.0,61116.0,0.15061183]
[1723344940687,0.61163667,61117.0,61116.0,0.15061183]
[1723344941011,0.53874474,61117.0,61116.0,0.15061183]
[1723344941209,0.66117599,61117.0,61116.0,0.15061183]
[1723344941613,0.65717599,61117.0,61116.0,0.14961183]
[1723344941777,0.69037599,61117.0,61116.0,0.14961183]
[1723344941978,0.12326325,61117.0,61116.0,0.31223483]
[1723344942182,0.000832,61117.0,61116.0,0.96672683]
[1723344942379,0.006832,61117.0,61116.0,1.46878775]
[1723344942612,0.000832,61122.0,61121.0,0.83474363]
[1723344942934,0.00062068,61125.0,61124.0,0.89000363]
[1723344943144,0.00062068,61125.0,61124.0,1.72276685]
[1723344943321,0.00062068,61125.0,61124.0,1.65483923]
[1723344945070,0.00062068,61125.0,61124.0,1.7285448]
[1723344945273,0.00162068,61125.0,61124.0,1.53752155]
[1723344945452,0.00062068,61125.0,61124.0,1.52352155]
[1723344945890,0.00062068,61125.0,61124.0,1.53752155]
[1723344945891,0.00162068,61125.0,61124.0,1.53752155]
[1723344946067,0.00262068,61125.0,61124.0,1.55152155]
[1723344946426,0.00162068,61125.0,61124.0,1.53752155]
[1723344946856,0.00262068,61125.0,61124.0,1.55152155]
[1723344947266,0.00162068,61125.0,61124.0,1.53752155]
[1723344947674,0.00262068,61125.0,61124.0,1.55152155]
[1723344947870,0.00162068,61125.0,61124.0,1.53752155]
[1723344948211,0.00062068,61125.0,61124.0,1.52352155]
[1723344948429,0.00162068,61125.0,61124.0,1.54752155]
[1723344948579,0.00162068,61125.0,61124.0,1.53752155]
[1723344948961,0.00162068,61125.0,61124.0,1.55152155]
[1723344948962,0.00262068,61125.0,61124.0,1.55152155]
[1723344949162,0.00162068,61125.0,61124.0,1.53752155]
[1723344950862,0.00162068,61125.0,61124.0,1.55152155]
[1723344950863,0.00262068,61125.0,61124.0,1.55152155]
[1723344955942,0.00262068,61125.0,61124.0,1.56152155]
[1723344956567,0.00262068,61125.0,61124.0,1.58452155]
[1723344958732,0.00062068,61125.0,61124.0,1.55652155]
[1723344959137,0.00262068,61125.0,61124.0,1.58452155]
[1723344960403,0.00162068,61125.0,61124.0,1.59052155]
[1723344960971,0.00162068,61125.0,61124.0,1.60452155]
[1723344960972,0.00262068,61125.0,61124.0,1.60452155]
[1723344961212,0.00262068,61125.0,61124.0,2.49206848]
[1723344961347,0.00262068,61125.0,61124.0,2.16486548]
[1723344961988,0.00062068,61125.0,61124.0,2.13686548]
[1723344962190,0.00162068,61125.0,61124.0,2.16486548]
[1723344962368,0.00262068,61125.0,61124.0,2.16486548]
[1723344962779,0.00262068,61125.0,61124.0,2.03372455]
[1723344963100,0.00262068,61125.0,61124.0,2.16505874]
[1723344963527,0.000832,61131.0,61130.0,1.72086563]
[1723344963680,0.000832,61131.0,61130.0,2.03901474]
[1723344964062,0.000832,61131.0,61130.0,1.90768055]
[1723344964278,0.000832,61131.0,61130.0,2.03891932]
[1723344964675,0.000832,61131.0,61130.0,2.0389188]
[1723344964975,0.000832,61131.0,61130.0,2.0529188]
[1723344965299,0.000832,61131.0,61130.0,2.0669188]
[1723344965505,0.000832,61131.0,61130.0,2.0529188]
[1723344965960,0.000832,61131.0,61130.0,2.05295089]
[1723344966562,0.000832,61131.0,61130.0,2.05294854]
[1723344966765,0.000832,61131.0,61130.0,2.03894854]
[1723344966971,0.000832,61131.0,61130.0,2.05294854]
[1723344967591,0.000832,61131.0,61130.0,2.06694854]
[1723344967880,0.000832,61131.0,61130.0,2.03894854]
[1723344968081,0.000832,61131.0,61130.0,2.05294854]
[1723344968243,0.000832,61131.0,61130.0,2.06694854]
[1723344968440,0.000832,61131.0,61130.0,2.03894854]
[1723344968912,0.000832,61131.0,61130.0,2.06694854]
[1723344969460,0.000832,61131.0,61130.0,2.07685346]
[1723344970297,0.000832,61131.0,61130.0,2.1447664]
[1723344970497,0.000832,61131.0,61130.0,2.1307664]
[1723344971027,0.000832,61131.0,61130.0,2.1447664]
[1723344972060,0.000832,61131.0,61130.0,2.0779664]
[1723344972208,0.000832,61131.0,61130.0,2.1427664]
[1723344972405,0.000832,61131.0,61130.0,2.31254892]
[1723344973181,0.000832,61131.0,61130.0,2.31454892]
[1723344973803,0.000832,61131.0,61130.0,2.3144004]
[1723344974201,0.000832,61131.0,61130.0,2.07670805]
[1723344974401,0.000832,61131.0,61130.0,2.31440341]
[1723344974751,0.000832,61131.0,61130.0,2.14462101]
[1723344975150,0.000832,61131.0,61130.0,2.31440536]
[1723344977002,0.000832,61131.0,61130.0,2.24560536]
[1723344977193,0.000832,61131.0,61130.0,2.31240536]
[1723344977390,0.000832,61131.0,61130.0,2.14262101]
[1723344977758,0.000832,61131.0,61130.0,2.1446323]
[1723344978845,0.000832,61131.0,61130.0,2.31441533]
[1723344979017,0.000832,61131.0,61130.0,2.1446323]
[1723344979222,0.000832,61131.0,61130.0,2.31441599]
[1723344981119,0.000832,61131.0,61130.0,2.31424603]
[1723344983078,0.000832,61131.0,61130.0,2.31417953]
[1723344983419,0.000832,61131.0,61130.0,2.24737953]
[1723344983819,0.000832,61131.0,61130.0,2.31417953]
[1723344984659,0.000832,61131.0,61130.0,2.14439651]
[1723344984862,0.000832,61131.0,61130.0,2.31418023]
[1723344985436,0.000832,61131.0,61130.0,2.47649682]
[1723344986561,0.000832,61131.0,61130.0,2.47651584]
[1723344987209,0.000832,61131.0,61130.0,2.54987342]
[1723344988179,0.000832,61131.0,61130.0,2.59877847]
[1723344988379,0.000832,61131.0,61130.0,2.0678481]
[1723344988588,0.000832,61131.0,61130.0,2.59878079]
[1723344989588,0.000832,61131.0,61130.0,2.47651816]
[1723344989789,0.000832,61131.0,61130.0,2.59878079]
[1723344990510,0.000832,61131.0,61130.0,2.59678079]
[1723344990685,0.000832,61131.0,61130.0,2.57255283]
[1723344990869,0.000832,61131.0,61130.0,2.47451816]
[1723344991547,0.000832,61131.0,61130.0,2.57255954]
[1723344992131,0.000832,61131.0,61130.0,2.04362685]
[1723344992331,0.000832,61131.0,61130.0,2.57434562]
[1723344994258,0.000832,61131.0,61130.0,2.47630424]
[1723344995480,0.000832,61131.0,61130.0,2.57434562]
[1723344995980,0.000832,61131.0,61130.0,2.28134611]
[1723344996179,0.000832,61131.0,61130.0,2.57461344]
[1723344996683,0.000832,61131.0,61130.0,2.57461062]
[1723344997431,0.000832,61131.0,61130.0,2.11156094]
[1723344997671,0.000832,61131.0,61130.0,2.57454287]
[1723344998005,0.000832,61131.0,61130.0,2.57454313]
[1723344998902,0.000832,61131.0,61130.0,2.47648061]
[1723344999707,0.000832,61131.0,61130.0,2.47448061]
[1723344999902,0.000832,61131.0,61130.0,2.47455527]
[1723345000281,0.000832,61131.0,61130.0,2.59713342]
[1723345003398,0.000832,61131.0,61130.0,2.47455527]
[1723345003594,0.000832,61131.0,61130.0,2.47655462]
[1723345006551,0.000832,61131.0,61130.0,2.47455462]
[1723345007093,0.000832,61131.0,61130.0,2.18128172]
[1723345007290,0.000832,61131.0,61130.0,2.47430791]
[1723345007787,0.000832,61131.0,61130.0,2.30451622]
[1723345007914,0.000832,61131.0,61130.0,2.47430508]
[1723345008119,0.000832,61131.0,61130.0,2.47630508]
[1723345009068,0.000832,61131.0,61130.0,2.47587581]
[1723345009263,0.000832,61131.0,61130.0,2.47387581]
[1723345009473,0.000832,61131.0,61130.0,2.33077581]
[1723345010898,0.000832,61131.0,61130.0,2.33277581]
[1723345011325,0.000832,61131.0,61130.0,2.04018987]
[1723345011526,0.000832,61131.0,61130.0,2.33286353]
[1723345012914,0.000832,61131.0,61130.0,2.33286496]
[1723345013509,0.000832,61131.0,61130.0,2.33186496]
[1723345013825,0.000832,61131.0,61130.0,2.33086496]
[1723345015036,0.000832,61131.0,61130.0,2.33086498]
[1723345015235,0.000832,61131.0,61130.0,2.33286498]
[1723345015820,0.000832,61131.0,61130.0,2.32366567]
[1723345016051,0.000832,61131.0,61130.0,2.32166567]
[1723345017299,0.000832,61131.0,61130.0,2.30166567]
[1723345017512,0.000832,61131.0,61130.0,2.32166567]
[1723345018401,0.000832,61131.0,61130.0,2.32366567]
[1723345018639,0.000832,61131.0,61130.0,2.15392451]
[1723345018859,0.000832,61131.0,61130.0,2.32371603]
[1723345019040,0.000832,61131.0,61130.0,2.0860079]
[1723345019235,0.000832,61131.0,61130.0,2.32371601]
[1723345020293,0.000832,61131.0,61130.0,2.30171601]
[1723345020470,0.000832,61131.0,61130.0,2.32171601]
[1723345020673,0.000832,61131.0,61130.0,2.32371601]
[1723345021396,0.000832,61131.0,61130.0,2.25631776]
[1723345021532,0.000832,61131.0,61130.0,2.32223436]
[1723345023752,0.000832,61131.0,61130.0,2.32423719]
[1723345024402,0.000832,61131.0,61130.0,2.32423436]
[1723345024605,0.000832,61131.0,61130.0,1.79328547]
[1723345024982,0.000832,61131.0,61130.0,2.32394142]
[1723345025220,0.000832,61131.0,61130.0,2.42629394]
[1723345028270,0.000832,61131.0,61130.0,2.32394142]
[1723345028503,0.000832,61131.0,61130.0,2.15199334]
[1723345028739,0.000832,61131.0,61130.0,2.32178354]
[1723345029740,0.000832,61131.0,61130.0,2.42408293]
[1723345031978,0.000832,61131.0,61130.0,2.18637664]
[1723345032180,0.000832,61131.0,61130.0,2.42408293]
[1723345033451,0.000832,61131.0,61130.0,2.42608293]
[1723345034375,0.000832,61131.0,61130.0,2.42408293]
[1723345034573,0.000832,61131.0,61130.0,2.56318293]
[1723345034778,0.000832,61131.0,61130.0,2.56518293]
[1723345035708,0.000832,61131.0,61130.0,2.03473847]
[1723345036007,0.000832,61131.0,61130.0,2.56544486]
[1723345039478,0.000832,61131.0,61130.0,2.27244293]
[1723345039735,0.000832,61131.0,61130.0,2.56534727]
[1723345040152,0.000832,61131.0,61130.0,2.56534497]
[1723345041371,0.000832,61131.0,61130.0,2.56534523]
[1723345043236,0.000832,61131.0,61130.0,2.5652809]
[1723345043916,0.000832,61131.0,61130.0,2.20452573]
[1723345044176,0.000832,61131.0,61130.0,2.56526217]
[1723345046888,0.000832,61131.0,61130.0,2.20452643]
[1723345047054,0.000832,61131.0,61130.0,2.56548461]
[1723345048316,0.000832,61131.0,61130.0,2.42638461]
[1723345049838,0.000832,61132.0,61131.0,1.21937763]
[1723345049839,0.06142562,61132.0,61131.0,1.21937763]
[1723345050055,0.06142562,61132.0,61131.0,1.91393869]
[1723345050380,0.13782562,61132.0,61131.0,2.03672651]
[1723345050904,0.13782562,61132.0,61131.0,1.79898402]
[1723345051057,0.13782562,61132.0,61131.0,2.05069629]
[1723345051261,0.13782562,61132.0,61131.0,1.85215475]
[1723345051461,0.13782562,61132.0,61131.0,1.86030898]
[1723345051731,0.13782562,61132.0,61131.0,1.93397944]
[1723345051910,0.13782562,61132.0,61131.0,1.1995334]
[1723345052170,0.13782562,61132.0,61131.0,0.8863674]
[1723345052359,0.13782562,61132.0,61131.0,0.65606949]
[1723345052535,0.13782562,61132.0,61131.0,0.64206949]
[1723345052734,0.13782562,61132.0,61131.0,0.65552423]
[1723345053022,0.13782562,61132.0,61131.0,0.64152423]
[1723345053398,0.13782562,61132.0,61131.0,0.65552423]
[1723345054176,0.13782562,61132.0,61131.0,0.64152423]
[1723345054424,0.13782562,61132.0,61131.0,0.65552423]
[1723345054651,0.13782562,61132.0,61131.0,0.52544563]
[1723345054866,0.13782562,61132.0,61131.0,0.65554358]
[1723345056268,0.13782562,61132.0,61131.0,0.98270958]
[1723345058992,0.13782562,61132.0,61131.0,0.98245503]
[1723345060848,0.13782562,61132.0,61131.0,0.65528903]
[1723345061056,0.13782562,61132.0,61131.0,0.32812303]
[1723345062673,0.13782562,61132.0,61131.0,0.65528903]
[1723345062928,0.13782562,61132.0,61131.0,0.65542457]
[1723345063359,0.13782562,61132.0,61131.0,0.52544563]
[1723345063559,0.13782562,61132.0,61131.0,0.65542496]
[1723345063780,0.13782562,61132.0,61131.0,0.32825896]
[1723345063978,0.13782562,61132.0,61131.0,0.32156233]
[1723345064457,0.13782562,61132.0,61131.0,0.19827963]
[1723345064662,0.13782562,61132.0,61131.0,0.19919483]
[1723345065085,0.13782562,61132.0,61131.0,0.18519483]
[1723345065281,0.13782562,61132.0,61131.0,0.1784982]
[1723345065481,0.13782562,61132.0,61131.0,0.51236083]
[1723345065682,0.13782562,61132.0,61131.0,0.5156642]
[1723345065889,0.13782562,61132.0,61131.0,0.19519483]
[1723345066067,0.13782562,61132.0,61131.0,0.18119483]
[1723345066265,0.13782562,61132.0,61131.0,0.19219483]
[1723345066470,0.13782562,61132.0,61131.0,0.51936083]
[1723345066711,0.13782562,61132.0,61131.0,0.19219483]
[1723345066970,0.13782562,61132.0,61131.0,0.18119483]
[1723345067179,0.13782562,61132.0,61131.0,0.02861183]
[1723345071083,0.30140562,61132.0,61131.0,0.02861183]
[1723345072992,0.13782562,61132.0,61131.0,0.02861183]
[1723345083288,0.30140562,61132.0,61131.0,0.02861183]
[1723345083710,0.95572562,61132.0,61131.0,0.02861183]
[1723345084000,0.62856562,61132.0,61131.0,0.02861183]
[1723345084785,0.62856562,61132.0,61131.0,0.01761183]
[1723345085263,0.62856562,61132.0,61131.0,0.02161183]
[1723345085611,0.62856562,61132.0,61131.0,0.0049152]
[1723345085612,0.95572562,61132.0,61131.0,0.0049152]
[1723345085839,1.11954054,61132.0,61131.0,0.0049152]
[1723345086043,1.45000391,61132.0,61131.0,0.0089152]
[1723345086249,1.21954054,61132.0,61131.0,0.0089152]
[1723345086455,1.5956058,61132.0,61131.0,0.0089152]
[1723345086746,1.5956058,61132.0,61131.0,0.0049152]
[1723345087194,1.5956058,61132.0,61131.0,0.0059152]
[1723345087409,1.5956058,61132.0,61131.0,0.0049152]
[1723345087535,1.54670054,61132.0,61131.0,0.0049152]
[1723345087937,1.54670054,61132.0,61131.0,0.0009152]
[1723345089036,1.54670054,61132.0,61131.0,0.0019152]
[1723345091851,1.62060998,61132.0,61131.0,0.0019152]
[1723345092052,1.66951524,61132.0,61131.0,0.0019152]
[1723345092877,1.5956058,61132.0,61131.0,0.0019152]
[1723345093082,2.41725284,61132.0,61131.0,0.0019152]
[1723345093257,2.44170547,61132.0,61131.0,0.0019152]
[1723345093458,2.34389495,61132.0,61131.0,0.0019152]
[1723345093704,2.46615811,61132.0,61131.0,0.0019152]
[1723345094062,2.67120772,61132.0,61131.0,0.0019152]
[1723345095305,2.67114596,61132.0,61131.0,0.0019152]
[1723345096569,2.59716391,61132.0,61131.0,0.0019152]
[1723345096775,2.3439756,61132.0,61131.0,0.0019152]
[1723345097375,2.34399538,61132.0,61131.0,0.0019152]
[1723345097737,2.34069201,61132.0,61131.0,0.0019152]
[1723345097956,2.34399538,61132.0,61131.0,0.0019152]
[1723345098500,2.67115538,61132.0,61131.0,0.0019152]
[1723345098905,2.59716391,61132.0,61131.0,0.0019152]
[1723345099110,2.6710188,61132.0,61131.0,0.0019152]
[1723345099306,2.82432691,61132.0,61131.0,0.0019152]
[1723345099532,2.7266188,61132.0,61131.0,0.0019152]
[1723345099908,2.84875962,61132.0,61131.0,0.0019152]
[1723345100518,2.84878818,61132.0,61131.0,0.0019152]
[1723345103560,3.01293788,61132.0,61131.0,0.0019152]
[1723345104304,3.01292961,61132.0,61131.0,0.0019152]
[1723345104461,3.02292961,61132.0,61131.0,0.0019152]
[1723345104748,3.03292961,61132.0,61131.0,0.0019152]
[1723345105697,2.91080301,61132.0,61131.0,0.0019152]
[1723345107569,2.91076454,61132.0,61131.0,0.0019152]
[1723345108161,2.91076365,61132.0,61131.0,0.0019152]
[1723345109538,2.91073609,61132.0,61131.0,0.0019152]
[1723345110299,2.74658639,61132.0,61131.0,0.0019152]
[1723345112703,2.72658639,61132.0,61131.0,0.0019152]
[1723345113938,2.74658639,61132.0,61131.0,0.0019152]
[1723345114807,2.74712287,61132.0,61131.0,0.0019152]
[1723345118330,2.74711063,61132.0,61131.0,0.0019152]
[1723345121943,2.85764565,61132.0,61131.0,0.0019152]
[1723345125739,2.85771977,61132.0,61131.0,0.0019152]
[1723345127656,3.00435421,61132.0,61131.0,0.0019152]
[1723345127837,2.85771977,61132.0,61131.0,0.0019152]
[1723345128233,3.00435421,61132.0,61131.0,0.0019152]
[1723345128636,2.85771977,61132.0,61131.0,0.0019152]
[1723345129897,2.85760786,61132.0,61131.0,0.0019152]
[1723345131064,2.77350449,61132.0,61131.0,0.0019152]
[1723345131267,2.33919707,61132.0,61131.0,0.0019152]
[1723345131616,2.3358937,61132.0,61131.0,0.0019152]
[1723345131838,2.6630537,61132.0,61131.0,0.0019152]
[1723345132126,2.44639946,61132.0,61131.0,0.0019152]
[1723345132329,2.3358937,61132.0,61131.0,0.0019152]
[1723345132733,2.2594937,61132.0,61131.0,0.0019152]
[1723345132956,2.40657513,61132.0,61131.0,0.0019152]
[1723345134595,2.40660479,61132.0,61131.0,0.0019152]
[1723345134795,2.25956604,61132.0,61131.0,0.0019152]
[1723345136303,2.18510054,61132.0,61131.0,0.0019152]
[1723345136513,2.25954464,61132.0,61131.0,0.0019152]
[1723345137969,2.26284801,61132.0,61131.0,0.0019152]
[1723345138181,2.4099336,61132.0,61131.0,0.0019152]
[1723345138382,2.26284801,61132.0,61131.0,0.0019152]
[1723345138608,2.4099336,61132.0,61131.0,0.0019152]
[1723345138801,2.40663023,61132.0,61131.0,0.0019152]
[1723345139007,2.25954464,61132.0,61131.0,0.0019152]
[1723345139950,2.18510054,61132.0,61131.0,0.0019152]
[1723345140130,2.25954785,61132.0,61131.0,0.0019152]
[1723345140487,2.2596125,61132.0,61131.0,0.0019152]
[1723345141669,1.38587758,61132.0,61131.0,0.1406152]
[1723345141936,1.38587758,61132.0,61131.0,0.14731183]
[1723345141937,0.28774164,61132.0,61131.0,0.14731183]